[Event "Titled Tuesday Blitz January 03 Early 2023"]
[White "MIM06"]
[Black "Mendez Fortes, Eduardo Jesus"]
[BlackFideId "3502376"]
[WhiteElo "2273"]
[BlackElo "2250"]
[Result "0-1"]
[Round "06"]
[TimeControl "180+2"]
[Date "2023.01.03"]
[WhiteClock "0:00:19"]
[BlackClock "0:01:18"]

1. e4 {[%clk 0:03:00]}  e5 {[%clk 0:02:59]} 2. Nf3 {[%clk 0:03:01]}  Nc6 {[%clk 0:03:00]} 3. Bc4 {[%clk 0:03:00]}  Nf6 {[%clk 0:03:00]} 4. d3 {[%clk 0:03:00]}  Bc5 {[%clk 0:02:59]} 5. c3 {[%clk 0:03:01]}  d6 {[%clk 0:02:59]} 6. O-O {[%clk 0:03:00]}  O-O {[%clk 0:03:00]} 7. b4 {[%clk 0:03:00]}  Bb6 {[%clk 0:03:00]} 8. a4 {[%clk 0:03:01]}  a5 {[%clk 0:03:00]} 9. b5 {[%clk 0:02:59]}  Ne7 {[%clk 0:03:00]} 10. Nbd2 {[%clk 0:02:51]}  Ng6 {[%clk 0:03:00]} 11. Re1 {[%clk 0:02:50]}  c6 {[%clk 0:03:00]} 12. Nf1 {[%clk 0:02:47]}  d5 {[%clk 0:03:00]} 13. exd5 {[%clk 0:02:44]}  cxd5 {[%clk 0:03:00]} 14. Ba2 {[%clk 0:02:43]}  Bc7 {[%clk 0:03:01]} 15. Ng3 {[%clk 0:02:40]}  h6 {[%clk 0:02:59]} 16. h3 {[%clk 0:02:40]}  Be6 {[%clk 0:02:59]} 17. Ba3 {[%clk 0:02:36]}  Re8 {[%clk 0:02:58]} 18. Rc1 {[%clk 0:02:35]}  Rc8 {[%clk 0:02:57]} 19. Qd2 {[%clk 0:02:29]}  b6 {[%clk 0:02:38]} 20. c4 {[%clk 0:01:45]}  e4 {[%clk 0:02:33]} 21. Nd4 {[%clk 0:01:41]}  Bf4 {[%clk 0:02:32]} 22. Qb2 {[%clk 0:01:30]}  Bxc1 {[%clk 0:02:32]} 23. Rxc1 {[%clk 0:01:29]}  exd3 {[%clk 0:02:29]} 24. Nc6 {[%clk 0:01:28]}  Qd7 {[%clk 0:02:24]} 25. cxd5 {[%clk 0:01:28]}  Bxd5 {[%clk 0:02:18]} 26. Bxd5 {[%clk 0:01:26]}  Qxd5 {[%clk 0:02:11]} 27. Qd2 {[%clk 0:01:25]}  Kh7 {[%clk 0:01:59]} 28. Rc3 {[%clk 0:01:21]}  Ne5 {[%clk 0:01:52]} 29. Ne7 {[%clk 0:00:53]}  Rxe7 {[%clk 0:01:40]} 30. Bxe7 {[%clk 0:00:51]}  Rxc3 {[%clk 0:01:39]} 31. Qxc3 {[%clk 0:00:52]}  d2 {[%clk 0:01:38]} 32. Qc2+ {[%clk 0:00:48]}  Qd3 {[%clk 0:01:38]} 33. Qd1 {[%clk 0:00:47]}  Nc4 {[%clk 0:01:35]} 34. Nf1 {[%clk 0:00:42]}  Ne4 {[%clk 0:01:33]} 35. Qg4 {[%clk 0:00:34]}  Nxf2 {[%clk 0:01:18]} 36. Kxf2 {[%clk 0:00:19]}  d1=Q {[%clk 0:01:18]} 0-1


[Site "https://www.chess.com"]

[Event "Titled Tuesday Blitz January 03 Early 2023"]
[White "Gurevich, Dmitry"]
[Black "Alfaro, William"]
[WhiteFideId "2000407"]
[BlackFideId "6100457"]
[WhiteElo "2393"]
[BlackElo "2134"]
[Result "1-0"]
[Round "06"]
[TimeControl "180+2"]
[Date "2023.01.03"]
[WhiteClock "0:01:51"]
[BlackClock "0:01:35"]

1. d4 {[%clk 0:03:00]}  Nf6 {[%clk 0:02:59]} 2. c4 {[%clk 0:03:00]}  g6 {[%clk 0:02:59]} 3. Nc3 {[%clk 0:03:00]}  Bg7 {[%clk 0:03:00]} 4. e4 {[%clk 0:03:00]}  d6 {[%clk 0:03:01]} 5. Nf3 {[%clk 0:03:00]}  O-O {[%clk 0:03:01]} 6. Be2 {[%clk 0:03:00]}  e5 {[%clk 0:03:02]} 7. O-O {[%clk 0:03:00]}  Nc6 {[%clk 0:02:59]} 8. d5 {[%clk 0:03:00]}  Ne7 {[%clk 0:02:59]} 9. Ne1 {[%clk 0:03:00]}  Nd7 {[%clk 0:02:59]} 10. Be3 {[%clk 0:03:01]}  f5 {[%clk 0:02:59]} 11. f3 {[%clk 0:03:01]}  f4 {[%clk 0:02:57]} 12. Bf2 {[%clk 0:03:02]}  h5 {[%clk 0:02:57]} 13. Nb5 {[%clk 0:03:00]}  a5 {[%clk 0:02:45]} 14. Nd3 {[%clk 0:02:58]}  g5 {[%clk 0:02:38]} 15. c5 {[%clk 0:02:55]}  Rf6 {[%clk 0:02:38]} 16. cxd6 {[%clk 0:02:52]}  cxd6 {[%clk 0:02:39]} 17. Rc1 {[%clk 0:02:52]}  Nf8 {[%clk 0:02:23]} 18. Nc7 {[%clk 0:02:50]}  Rb8 {[%clk 0:02:23]} 19. Ba7 {[%clk 0:02:48]}  Bd7 {[%clk 0:02:22]} 20. Bxb8 {[%clk 0:02:42]}  Qxb8 {[%clk 0:02:23]} 21. Nf2 {[%clk 0:02:41]}  b5 {[%clk 0:02:14]} 22. Qb3 {[%clk 0:02:26]}  b4 {[%clk 0:02:11]} 23. Qc4 {[%clk 0:02:21]}  Neg6 {[%clk 0:02:08]} 24. Ne6 {[%clk 0:02:13]}  Nxe6 {[%clk 0:02:03]} 25. dxe6 {[%clk 0:02:12]}  Bxe6 {[%clk 0:02:04]} 26. Qc7 {[%clk 0:02:08]}  Qf8 {[%clk 0:02:02]} 27. Bc4 {[%clk 0:02:04]}  Bxc4 {[%clk 0:02:02]} 28. Rxc4 {[%clk 0:02:04]}  Nh4 {[%clk 0:02:01]} 29. Qd7 {[%clk 0:01:55]}  g4 {[%clk 0:01:35]} 30. Rc8 {[%clk 0:01:51]} 1-0


[Site "https://www.chess.com"]

[Event "Titled Tuesday Blitz January 03 Early 2023"]
[White "Avazkhonov, Alikhon"]
[Black "Baskakov, Egor"]
[WhiteFideId "14208504"]
[BlackFideId "24197866"]
[WhiteElo "1538"]
[BlackElo "2215"]
[Result "0-1"]
[Round "06"]
[TimeControl "180+2"]
[Date "2023.01.03"]
[WhiteClock "0:00:01"]
[BlackClock "0:00:39"]

1. d4 {[%clk 0:03:00]}  Nf6 {[%clk 0:02:59]} 2. c4 {[%clk 0:03:01]}  e6 {[%clk 0:03:00]} 3. Nc3 {[%clk 0:03:02]}  d5 {[%clk 0:03:01]} 4. cxd5 {[%clk 0:03:02]}  Nxd5 {[%clk 0:03:01]} 5. e4 {[%clk 0:03:02]}  Nxc3 {[%clk 0:03:02]} 6. bxc3 {[%clk 0:03:03]}  b6 {[%clk 0:03:02]} 7. Nf3 {[%clk 0:03:03]}  Bb7 {[%clk 0:03:03]} 8. Bd3 {[%clk 0:03:03]}  Nd7 {[%clk 0:03:04]} 9. O-O {[%clk 0:03:04]}  Be7 {[%clk 0:03:04]} 10. Qe2 {[%clk 0:03:01]}  O-O {[%clk 0:03:04]} 11. a4 {[%clk 0:02:58]}  c5 {[%clk 0:03:04]} 12. a5 {[%clk 0:02:58]}  cxd4 {[%clk 0:03:04]} 13. a6 {[%clk 0:02:57]}  Bc6 {[%clk 0:03:04]} 14. cxd4 {[%clk 0:02:51]}  Rc8 {[%clk 0:02:59]} 15. Bb2 {[%clk 0:02:49]}  Re8 {[%clk 0:02:57]} 16. Rfc1 {[%clk 0:02:42]}  Nf6 {[%clk 0:02:44]} 17. Ne5 {[%clk 0:02:31]}  Ba8 {[%clk 0:02:43]} 18. Bb5 {[%clk 0:02:30]}  Rf8 {[%clk 0:02:42]} 19. Nc6 {[%clk 0:02:29]}  Bxc6 {[%clk 0:02:41]} 20. Bxc6 {[%clk 0:02:30]}  Rc7 {[%clk 0:02:34]} 21. d5 {[%clk 0:02:23]}  exd5 {[%clk 0:02:33]} 22. exd5 {[%clk 0:02:23]}  Bd6 {[%clk 0:02:33]} 23. Rc4 {[%clk 0:02:16]}  Re7 {[%clk 0:02:32]} 24. Qf3 {[%clk 0:02:15]}  Nd7 {[%clk 0:02:29]} 25. Rg4 {[%clk 0:01:19]}  Be5 {[%clk 0:02:16]} 26. d6 {[%clk 0:00:37]}  Re6 {[%clk 0:02:04]} 27. Bxd7 {[%clk 0:00:31]}  Qxd7 {[%clk 0:02:04]} 28. Bxe5 {[%clk 0:00:21]}  Rxe5 {[%clk 0:02:05]} 29. Rd1 {[%clk 0:00:20]}  Qxd6 {[%clk 0:01:40]} 30. h4 {[%clk 0:00:07]}  Qe6 {[%clk 0:01:34]} 31. Qg3 {[%clk 0:00:05]}  g6 {[%clk 0:01:32]} 32. Rdd4 {[%clk 0:00:05]}  h5 {[%clk 0:01:28]} 33. Rg5 {[%clk 0:00:04]}  Rxg5 {[%clk 0:01:27]} 34. hxg5 {[%clk 0:00:03]}  Qe1+ {[%clk 0:01:17]} 35. Kh2 {[%clk 0:00:03]}  Qe2 {[%clk 0:01:18]} 36. Qf4 {[%clk 0:00:02]}  Qxa6 {[%clk 0:01:17]} 37. Rd6 {[%clk 0:00:03]}  Qb5 {[%clk 0:01:09]} 38. Kh3 {[%clk 0:00:01]}  Qc5 {[%clk 0:01:03]} 39. Kh4 {[%clk 0:00:01]}  Qc8 {[%clk 0:00:50]} 40. g3 {[%clk 0:00:01]}  Rd8 {[%clk 0:00:42]} 41. Rf6 {[%clk 0:00:01]}  Rd1 {[%clk 0:00:40]} 42. Qe4 {[%clk 0:00:01]}  Rh1+ {[%clk 0:00:39]} 43. Qxh1 {[%clk 0:00:01]}  Qg4# {[%clk 0:00:39]} 0-1


[Site "https://www.chess.com"]

[Event "Titled Tuesday Blitz January 03 Early 2023"]
[White "Le Ruyet, Leopold"]
[Black "Samunenkov, Ihor"]
[WhiteFideId "645923"]
[BlackFideId "14187086"]
[WhiteElo "2245"]
[BlackElo "2501"]
[Result "1-0"]
[Round "06"]
[TimeControl "180+2"]
[Date "2023.01.03"]
[WhiteClock "0:00:02"]
[BlackClock "0:00:03"]

1. e4 {[%clk 0:03:00]}  c5 {[%clk 0:02:59]} 2. Nc3 {[%clk 0:03:00]}  Nc6 {[%clk 0:02:56]} 3. Bb5 {[%clk 0:02:59]}  Nd4 {[%clk 0:02:56]} 4. Nf3 {[%clk 0:02:59]}  e6 {[%clk 0:02:57]} 5. O-O {[%clk 0:02:56]}  a6 {[%clk 0:02:57]} 6. Bd3 {[%clk 0:02:55]}  Nc6 {[%clk 0:02:58]} 7. b3 {[%clk 0:02:51]}  d6 {[%clk 0:02:36]} 8. Bb2 {[%clk 0:02:50]}  Nge7 {[%clk 0:02:35]} 9. Be2 {[%clk 0:02:50]}  Nd4 {[%clk 0:02:34]} 10. Nxd4 {[%clk 0:02:47]}  cxd4 {[%clk 0:02:33]} 11. Nb1 {[%clk 0:02:47]}  Nc6 {[%clk 0:02:31]} 12. f4 {[%clk 0:02:45]}  Be7 {[%clk 0:02:27]} 13. d3 {[%clk 0:02:45]}  O-O {[%clk 0:02:24]} 14. Nd2 {[%clk 0:02:45]}  e5 {[%clk 0:02:03]} 15. c3 {[%clk 0:02:35]}  dxc3 {[%clk 0:01:56]} 16. Bxc3 {[%clk 0:02:36]}  exf4 {[%clk 0:01:44]} 17. Rxf4 {[%clk 0:02:29]}  d5 {[%clk 0:01:45]} 18. d4 {[%clk 0:02:09]}  Bg5 {[%clk 0:01:33]} 19. Rf3 {[%clk 0:02:06]}  Bxd2 {[%clk 0:00:46]} 20. Qxd2 {[%clk 0:02:03]}  dxe4 {[%clk 0:00:46]} 21. Rg3 {[%clk 0:02:04]}  f6 {[%clk 0:00:41]} 22. Qf4 {[%clk 0:01:39]}  Re8 {[%clk 0:00:21]} 23. Bh5 {[%clk 0:01:29]}  Re6 {[%clk 0:00:07]} 24. d5 {[%clk 0:01:10]}  Qxd5 {[%clk 0:00:07]} 25. Be2 {[%clk 0:00:58]}  Kh8 {[%clk 0:00:04]} 26. Bc4 {[%clk 0:00:55]}  Qc5+ {[%clk 0:00:04]} 27. Kh1 {[%clk 0:00:55]}  Re7 {[%clk 0:00:03]} 28. Bxf6 {[%clk 0:00:47]}  Bf5 {[%clk 0:00:03]} 29. Bxe7 {[%clk 0:00:39]}  Nxe7 {[%clk 0:00:04]} 30. Rd1 {[%clk 0:00:35]}  b5 {[%clk 0:00:04]} 31. Bd5 {[%clk 0:00:32]}  Rf8 {[%clk 0:00:03]} 32. Bxe4 {[%clk 0:00:28]}  h6 {[%clk 0:00:02]} 33. Rgd3 {[%clk 0:00:20]}  Qc8 {[%clk 0:00:02]} 34. Bxf5 {[%clk 0:00:15]}  Nxf5 {[%clk 0:00:03]} 35. Qe4 {[%clk 0:00:11]}  Re8 {[%clk 0:00:03]} 36. Qg4 {[%clk 0:00:10]}  Rf8 {[%clk 0:00:02]} 37. Qh3 {[%clk 0:00:08]}  Qc5 {[%clk 0:00:01]} 38. Rf3 {[%clk 0:00:08]}  Kh7 {[%clk 0:00:01]} 39. Rdf1 {[%clk 0:00:07]}  g6 {[%clk 0:00:02]} 40. Qg4 {[%clk 0:00:02]}  Re8 {[%clk 0:00:02]} 41. Qf4 {[%clk 0:00:02]}  Re7 {[%clk 0:00:02]} 42. Qd2 {[%clk 0:00:02]}  Qe5 {[%clk 0:00:02]} 43. Rd3 {[%clk 0:00:02]}  Ne3 {[%clk 0:00:01]} 44. Re1 {[%clk 0:00:01]}  Qf4 {[%clk 0:00:02]} 45. Rdxe3 {[%clk 0:00:01]}  Rf7 {[%clk 0:00:02]} 46. Qe2 {[%clk 0:00:01]}  Qf5 {[%clk 0:00:02]} 47. Rf3 {[%clk 0:00:01]}  Qd7 {[%clk 0:00:02]} 48. Rxf7+ {[%clk 0:00:02]}  Qxf7 {[%clk 0:00:03]} 49. Qe7 {[%clk 0:00:02]} 1-0


[Site "https://www.chess.com"]

[Event "Titled Tuesday Blitz January 03 Early 2023"]
[White "Kaplan, Avi Harrison"]
[Black "Mekhitarian, Krikor Sevag"]
[WhiteFideId "30934559"]
[BlackFideId "2107660"]
[WhiteElo "2146"]
[BlackElo "2537"]
[Result "0-1"]
[Round "06"]
[TimeControl "180+2"]
[Date "2023.01.03"]
[WhiteClock "0:00:11"]
[BlackClock "0:00:09"]

1. b4 {[%clk 0:03:00]}  e6 {[%clk 0:02:55]} 2. Bb2 {[%clk 0:03:00]}  Nf6 {[%clk 0:02:55]} 3. a3 {[%clk 0:03:00]}  b5 {[%clk 0:02:51]} 4. e3 {[%clk 0:02:58]}  Bb7 {[%clk 0:02:51]} 5. Nf3 {[%clk 0:02:58]}  a6 {[%clk 0:02:50]} 6. c4 {[%clk 0:02:56]}  bxc4 {[%clk 0:02:46]} 7. Bxc4 {[%clk 0:02:57]}  Be7 {[%clk 0:02:45]} 8. O-O {[%clk 0:02:57]}  O-O {[%clk 0:02:44]} 9. d3 {[%clk 0:02:56]}  a5 {[%clk 0:02:41]} 10. b5 {[%clk 0:02:50]}  d6 {[%clk 0:02:33]} 11. Nbd2 {[%clk 0:02:47]}  Nbd7 {[%clk 0:02:33]} 12. Rc1 {[%clk 0:02:46]}  a4 {[%clk 0:02:34]} 13. Qc2 {[%clk 0:02:38]}  e5 {[%clk 0:02:23]} 14. Ba2 {[%clk 0:02:27]}  Rc8 {[%clk 0:02:14]} 15. Qxa4 {[%clk 0:02:23]}  Nb6 {[%clk 0:02:11]} 16. Qc2 {[%clk 0:02:17]}  c5 {[%clk 0:02:10]} 17. bxc6 {[%clk 0:02:08]}  Rxc6 {[%clk 0:02:09]} 18. Qb1 {[%clk 0:02:07]}  Rxc1 {[%clk 0:01:55]} 19. Rxc1 {[%clk 0:02:08]}  Ba6 {[%clk 0:01:55]} 20. Nc4 {[%clk 0:01:47]}  Na4 {[%clk 0:01:36]} 21. Ba1 {[%clk 0:01:42]}  Qa8 {[%clk 0:01:36]} 22. Qb4 {[%clk 0:01:24]}  Nc5 {[%clk 0:01:33]} 23. Nb6 {[%clk 0:01:22]}  Qa7 {[%clk 0:01:26]} 24. Qa5 {[%clk 0:00:35]}  Bd8 {[%clk 0:00:55]} 25. Rb1 {[%clk 0:00:35]}  Nfd7 {[%clk 0:00:35]} 26. Nc8 {[%clk 0:00:29]}  Qa8 {[%clk 0:00:34]} 27. Nb6 {[%clk 0:00:18]}  Nxb6 {[%clk 0:00:33]} 28. Rxb6 {[%clk 0:00:19]}  Bxb6 {[%clk 0:00:30]} 29. Qxb6 {[%clk 0:00:20]}  Qb8 {[%clk 0:00:30]} 30. Qxb8 {[%clk 0:00:18]}  Rxb8 {[%clk 0:00:31]} 31. d4 {[%clk 0:00:14]}  Nb3 {[%clk 0:00:30]} 32. Bc3 {[%clk 0:00:10]}  e4 {[%clk 0:00:29]} 33. Ng5 {[%clk 0:00:08]}  d5 {[%clk 0:00:29]} 34. g3 {[%clk 0:00:08]}  h6 {[%clk 0:00:29]} 35. Nh3 {[%clk 0:00:09]}  g5 {[%clk 0:00:28]} 36. Kg2 {[%clk 0:00:08]}  Bc4 {[%clk 0:00:25]} 37. Bb4 {[%clk 0:00:07]}  Kg7 {[%clk 0:00:18]} 38. Ng1 {[%clk 0:00:05]}  f6 {[%clk 0:00:16]} 39. h3 {[%clk 0:00:05]}  Ra8 {[%clk 0:00:08]} 40. f3 {[%clk 0:00:04]}  exf3+ {[%clk 0:00:08]} 41. Nxf3 {[%clk 0:00:05]}  Nc1 {[%clk 0:00:05]} 42. Bb1 {[%clk 0:00:03]}  Bd3 {[%clk 0:00:05]} 43. Bxd3 {[%clk 0:00:01]}  Nxd3 {[%clk 0:00:06]} 44. g4 {[%clk 0:00:01]}  Nxb4 {[%clk 0:00:06]} 45. axb4 {[%clk 0:00:02]}  Rb8 {[%clk 0:00:07]} 46. Kg3 {[%clk 0:00:02]}  Rxb4 {[%clk 0:00:07]} 47. Ne1 {[%clk 0:00:02]}  Rb3 {[%clk 0:00:08]} 48. Ng2 {[%clk 0:00:02]}  Kg6 {[%clk 0:00:07]} 49. Kf3 {[%clk 0:00:03]}  f5 {[%clk 0:00:07]} 50. Ne1 {[%clk 0:00:02]}  f4 {[%clk 0:00:07]} 51. Ng2 {[%clk 0:00:03]}  Kf6 {[%clk 0:00:06]} 52. Kf2 {[%clk 0:00:03]}  fxe3+ {[%clk 0:00:06]} 53. Nxe3 {[%clk 0:00:04]}  Ke6 {[%clk 0:00:04]} 54. Ke2 {[%clk 0:00:05]}  Ra3 {[%clk 0:00:04]} 55. Kf2 {[%clk 0:00:05]}  Rd3 {[%clk 0:00:04]} 56. Nf5 {[%clk 0:00:04]}  Rxh3 {[%clk 0:00:04]} 57. Kg2 {[%clk 0:00:05]}  Rd3 {[%clk 0:00:02]} 58. Nxh6 {[%clk 0:00:05]}  Rxd4 {[%clk 0:00:02]} 59. Kg3 {[%clk 0:00:05]}  Re4 {[%clk 0:00:02]} 60. Nf5 {[%clk 0:00:06]}  Ke5 {[%clk 0:00:03]} 61. Kf3 {[%clk 0:00:06]}  Rf4+ {[%clk 0:00:03]} 62. Kg3 {[%clk 0:00:06]}  Rxf5 {[%clk 0:00:04]} 63. gxf5 {[%clk 0:00:06]}  Kxf5 {[%clk 0:00:04]} 64. Kf3 {[%clk 0:00:07]}  g4+ {[%clk 0:00:05]} 65. Kg3 {[%clk 0:00:08]}  Kg5 {[%clk 0:00:05]} 66. Kf2 {[%clk 0:00:08]}  Kf4 {[%clk 0:00:06]} 67. Ke2 {[%clk 0:00:09]}  g3 {[%clk 0:00:07]} 68. Kf1 {[%clk 0:00:10]}  Kf3 {[%clk 0:00:07]} 69. Kg1 {[%clk 0:00:09]}  g2 {[%clk 0:00:07]} 70. Kh2 {[%clk 0:00:09]}  Kf2 {[%clk 0:00:08]} 71. Kh3 {[%clk 0:00:10]}  g1=Q {[%clk 0:00:09]} 72. Kh4 {[%clk 0:00:11]}  Qg6 {[%clk 0:00:09]} 73. Kh3 {[%clk 0:00:11]}  Qg3# {[%clk 0:00:09]} 0-1


[Site "https://www.chess.com"]

[Event "Titled Tuesday Blitz January 03 Early 2023"]
[White "Ljukin, Sergei"]
[Black "Korchmar, Vasiliy"]
[WhiteFideId "14102200"]
[BlackFideId "24131750"]
[WhiteElo "2362"]
[BlackElo "2438"]
[Result "1-0"]
[Round "06"]
[TimeControl "180+2"]
[Date "2023.01.03"]
[WhiteClock "0:00:13"]
[BlackClock "0:00:02"]

1. e4 {[%clk 0:02:53]}  e6 {[%clk 0:02:55]} 2. d4 {[%clk 0:02:52]}  d5 {[%clk 0:02:54]} 3. Nc3 {[%clk 0:02:53]}  Bb4 {[%clk 0:02:48]} 4. e5 {[%clk 0:02:52]}  c5 {[%clk 0:02:45]} 5. a3 {[%clk 0:02:52]}  Bxc3+ {[%clk 0:02:44]} 6. bxc3 {[%clk 0:02:53]}  Qc7 {[%clk 0:02:37]} 7. Qg4 {[%clk 0:02:48]}  Ne7 {[%clk 0:02:37]} 8. Qxg7 {[%clk 0:02:39]}  Rg8 {[%clk 0:02:36]} 9. Qxh7 {[%clk 0:02:40]}  cxd4 {[%clk 0:02:36]} 10. Ne2 {[%clk 0:02:40]}  Nbc6 {[%clk 0:02:26]} 11. f4 {[%clk 0:02:39]}  Bd7 {[%clk 0:02:24]} 12. Qd3 {[%clk 0:02:30]}  dxc3 {[%clk 0:02:23]} 13. Nxc3 {[%clk 0:02:30]}  a6 {[%clk 0:02:11]} 14. Rb1 {[%clk 0:02:28]}  Nf5 {[%clk 0:02:07]} 15. g3 {[%clk 0:02:18]}  Na5 {[%clk 0:01:57]} 16. Bh3 {[%clk 0:02:09]}  d4 {[%clk 0:01:43]} 17. Ne4 {[%clk 0:02:02]}  O-O-O {[%clk 0:01:25]} 18. Bxf5 {[%clk 0:01:55]}  exf5 {[%clk 0:01:26]} 19. Nd6+ {[%clk 0:01:55]}  Kb8 {[%clk 0:01:26]} 20. Bd2 {[%clk 0:01:33]}  Bc6 {[%clk 0:01:19]} 21. Qxa6 {[%clk 0:01:24]}  Rxd6 {[%clk 0:01:09]} 22. Bxa5 {[%clk 0:00:32]}  Qe7 {[%clk 0:01:09]} 23. Bb4 {[%clk 0:00:28]}  Rgd8 {[%clk 0:00:38]} 24. Qxc6 {[%clk 0:00:24]}  Qxe5+ {[%clk 0:00:19]} 25. fxe5 {[%clk 0:00:22]}  Rxc6 {[%clk 0:00:20]} 26. Bd6+ {[%clk 0:00:21]}  Kc8 {[%clk 0:00:20]} 27. Kd2 {[%clk 0:00:20]}  f6 {[%clk 0:00:20]} 28. Rhf1 {[%clk 0:00:19]}  fxe5 {[%clk 0:00:21]} 29. Bxe5 {[%clk 0:00:19]}  Rd5 {[%clk 0:00:18]} 30. Rbe1 {[%clk 0:00:18]}  Rdc5 {[%clk 0:00:17]} 31. Bxd4 {[%clk 0:00:17]}  Rxc2+ {[%clk 0:00:17]} 32. Kd3 {[%clk 0:00:17]}  Rxh2 {[%clk 0:00:18]} 33. Rxf5 {[%clk 0:00:15]}  Ra6 {[%clk 0:00:19]} 34. Rf7 {[%clk 0:00:14]}  Rxa3+ {[%clk 0:00:18]} 35. Kc4 {[%clk 0:00:15]}  Rc2+ {[%clk 0:00:15]} 36. Kd5 {[%clk 0:00:15]}  Ra5+ {[%clk 0:00:13]} 37. Ke4 {[%clk 0:00:14]}  Rc7 {[%clk 0:00:03]} 38. Rxc7+ {[%clk 0:00:13]}  Kxc7 {[%clk 0:00:04]} 39. Be5+ {[%clk 0:00:13]}  Kd7 {[%clk 0:00:04]} 40. Kf5 {[%clk 0:00:13]}  b5 {[%clk 0:00:03]} 41. Rc1 {[%clk 0:00:13]}  b4 {[%clk 0:00:02]} 42. Rc7+ {[%clk 0:00:13]}  Kd8 {[%clk 0:00:03]} 43. Rb7 {[%clk 0:00:14]}  Ra4 {[%clk 0:00:03]} 44. Ke6 {[%clk 0:00:14]}  Ra6+ {[%clk 0:00:02]} 45. Bd6 {[%clk 0:00:13]} 1-0


[Site "https://www.chess.com"]

[Event "Titled Tuesday Blitz January 03 Early 2023"]
[White "Legenia, Artem"]
[Black "Ilkhomi, Jaloliddin"]
[WhiteFideId "14136945"]
[BlackFideId "14700948"]
[WhiteElo "2092"]
[BlackElo "1997"]
[Result "0-1"]
[Round "06"]
[TimeControl "180+2"]
[Date "2023.01.03"]
[WhiteClock "0:01:53"]
[BlackClock "0:02:10"]

1. e4 {[%clk 0:03:00]}  e6 {[%clk 0:03:00]} 2. d4 {[%clk 0:03:00]}  d5 {[%clk 0:02:59]} 3. Nd2 {[%clk 0:02:57]}  Nf6 {[%clk 0:02:59]} 4. exd5 {[%clk 0:02:57]}  exd5 {[%clk 0:02:59]} 5. Ndf3 {[%clk 0:02:57]}  Bd6 {[%clk 0:02:59]} 6. Bd3 {[%clk 0:02:57]}  O-O {[%clk 0:03:00]} 7. Ne2 {[%clk 0:02:57]}  Re8 {[%clk 0:03:00]} 8. O-O {[%clk 0:02:57]}  Ne4 {[%clk 0:03:01]} 9. b3 {[%clk 0:02:56]}  c6 {[%clk 0:03:02]} 10. Bb2 {[%clk 0:02:56]}  Bf5 {[%clk 0:03:02]} 11. Ng3 {[%clk 0:02:55]}  Bg6 {[%clk 0:03:02]} 12. c4 {[%clk 0:02:53]}  Nd7 {[%clk 0:03:02]} 13. Re1 {[%clk 0:02:50]}  f5 {[%clk 0:03:01]} 14. a3 {[%clk 0:02:43]}  Qf6 {[%clk 0:03:01]} 15. b4 {[%clk 0:02:32]}  Re7 {[%clk 0:02:55]} 16. b5 {[%clk 0:02:29]}  Rae8 {[%clk 0:02:54]} 17. Qb3 {[%clk 0:02:28]}  Nd2 {[%clk 0:02:44]} 18. Nxd2 {[%clk 0:02:14]}  Rxe1+ {[%clk 0:02:43]} 19. Rxe1 {[%clk 0:02:14]}  Rxe1+ {[%clk 0:02:44]} 20. Ndf1 {[%clk 0:02:14]}  Bf7 {[%clk 0:02:29]} 21. bxc6 {[%clk 0:02:13]}  bxc6 {[%clk 0:02:26]} 22. Qb7 {[%clk 0:02:13]}  dxc4 {[%clk 0:02:23]} 23. Bxf5 {[%clk 0:02:08]}  Bxg3 {[%clk 0:02:21]} 24. Qc8+ {[%clk 0:02:06]}  Nf8 {[%clk 0:02:20]} 25. hxg3 {[%clk 0:02:04]}  g6 {[%clk 0:02:17]} 26. Bh3 {[%clk 0:01:57]}  Re2 {[%clk 0:02:15]} 27. Bc3 {[%clk 0:01:54]}  Qxf2+ {[%clk 0:02:14]} 28. Kh2 {[%clk 0:01:53]}  Qxf1 {[%clk 0:02:13]} 29. Bb4 {[%clk 0:01:53]}  Bd5 {[%clk 0:02:10]} 0-1


[Site "https://www.chess.com"]

[Event "Titled Tuesday Blitz January 03 Early 2023"]
[White "Pein, Jonathan"]
[Black "Blanco Ronquillo, Humberto L."]
[WhiteFideId "417092"]
[BlackFideId "3504239"]
[WhiteElo "2265"]
[BlackElo "2442"]
[Result "1-0"]
[Round "06"]
[TimeControl "180+2"]
[Date "2023.01.03"]
[WhiteClock "0:00:50"]
[BlackClock "0:00:22"]

1. e4 {[%clk 0:02:59]}  c5 {[%clk 0:02:58]} 2. g3 {[%clk 0:02:57]}  Nc6 {[%clk 0:02:57]} 3. Bg2 {[%clk 0:02:58]}  g6 {[%clk 0:02:58]} 4. Ne2 {[%clk 0:02:58]}  Bg7 {[%clk 0:02:58]} 5. O-O {[%clk 0:02:59]}  e5 {[%clk 0:02:54]} 6. a3 {[%clk 0:02:58]}  Nge7 {[%clk 0:02:54]} 7. b4 {[%clk 0:02:59]}  cxb4 {[%clk 0:02:54]} 8. axb4 {[%clk 0:03:00]}  Nxb4 {[%clk 0:02:54]} 9. Ba3 {[%clk 0:02:58]}  Nbc6 {[%clk 0:02:54]} 10. Nbc3 {[%clk 0:02:59]}  O-O {[%clk 0:02:45]} 11. Nb5 {[%clk 0:02:59]}  d5 {[%clk 0:02:23]} 12. exd5 {[%clk 0:02:56]}  Nxd5 {[%clk 0:02:00]} 13. Bxf8 {[%clk 0:02:55]}  Kxf8 {[%clk 0:01:56]} 14. Bxd5 {[%clk 0:02:54]}  Qxd5 {[%clk 0:01:57]} 15. Nc7 {[%clk 0:02:54]}  Qf3 {[%clk 0:01:56]} 16. Nxa8 {[%clk 0:02:11]}  Bh3 {[%clk 0:01:54]} 17. Nf4 {[%clk 0:02:12]}  Qxd1 {[%clk 0:01:55]} 18. Rfxd1 {[%clk 0:02:12]}  exf4 {[%clk 0:01:54]} 19. Nc7 {[%clk 0:01:46]}  Nd4 {[%clk 0:01:48]} 20. Rxa7 {[%clk 0:01:41]}  f3 {[%clk 0:01:19]} 21. Ra8+ {[%clk 0:01:14]}  Ke7 {[%clk 0:01:17]} 22. Nd5+ {[%clk 0:01:14]}  Kd7 {[%clk 0:01:18]} 23. Nf4 {[%clk 0:01:11]}  Bf5 {[%clk 0:00:37]} 24. c3 {[%clk 0:01:06]}  Ne2+ {[%clk 0:00:36]} 25. Nxe2 {[%clk 0:01:05]}  fxe2 {[%clk 0:00:37]} 26. Re1 {[%clk 0:01:00]}  Bd3 {[%clk 0:00:37]} 27. f4 {[%clk 0:00:52]}  Bf6 {[%clk 0:00:20]} 28. Kf2 {[%clk 0:00:51]}  Be7 {[%clk 0:00:21]} 29. Ke3 {[%clk 0:00:50]}  Bc5+ {[%clk 0:00:22]} 30. Kxd3 {[%clk 0:00:50]} 1-0


[Site "https://www.chess.com"]